Cogmind - Beta 16 @@@ ROGUE MODE // 2025.11.21 @ 14:24:17 Player: lvl5hm Result: Destroyed by L-61 Swordsman with Power Sword Performance ------------- Evolutions (6) 3000 Regions Visited (13) 2600 Robots Destroyed (144) 720 Value Destroyed (5235) 5235 Prototype IDs (29) 580 Alien Tech Used (1) 200 Bonus (1960) 1960 TOTAL SCORE: 14295 Bonus ------- Follower Combat Kills 946 Registered with UFD 300 Met Optimus in HQ 500 Met Zhirov 300 Friendly Fire -86 Cogmind --------- Core Integrity 0/1150 Matter 290/300 Energy 55/100 System Corruption 3% Temperature Cool (0) Movement Core (400) Ox7 Location -4/Upper Caves Parts ------- > --- POWER (2) -------- (None) > --- PROPULSION (4) --- (None) > --- UTILITY (11) ----- Large Storage Unit 0b10 Decoder Chip [Skirmisher] > --- WEAPON (2) ------- Companion Sword > --- INVENTORY (15) --- Neutrino Core Light Antimatter Reactor Advanced Reaction Control System Authchip [Propulsion] Authchip [Processor] Transdimensional Reconstructor Matter Neutralizer Improved Proton Missile Launcher Rocket Launcher Remote Datajack Improved Plasma Cutter CPS Tube (2) Peak State ------------ > --- POWER ------------ Micro Fission Core Antimatter Reactor > --- PROPULSION ------- Thunder Leg Advanced Myomer Leg Advanced Myomer Leg Advanced Myomer Leg > --- UTILITY ---------- Large Storage Unit Advanced Signal Interpreter Improved Terrain Scanner Surveybot 17 Chip Core Analyzer Precision Matter Filter Advanced Reaction Control System Improved Phase Shifter Hacking Suite Advanced Hacking Suite Authchip [Propulsion] > --- WEAPON ----------- Companion Sword > --- INVENTORY -------- Thunder Leg Thunder Leg Advanced Myomer Leg Advanced Reaction Control System Authchip [Propulsion] Authchip [Processor] Transdimensional Reconstructor Matter Neutralizer Rocket Launcher Remote Datajack Improved Plasma Cutter CPS Tube [Rating: 110] Favorites ----------- Power Cooled Ion Engine Engine Cooled Ion Engine Power Core Micro Fission Core Reactor Fusion Reactor Propulsion Light Treads Treads Light Treads Leg Advanced Myomer Leg Wheel Armored Wheel Hover Unit Combat Airjet Flight Unit VTOL Module Utility Medium Armor Plating Device Heat Sink Storage Large Storage Unit Processor Core Analyzer Hackware Hacking Suite Protection Medium Armor Plating Weapon Autogun Energy Gun Beam Rifle Energy Cannon Advanced Beam Cannon Ballistic Gun Autogun Launcher Rocket Launcher Impact Weapon Hammer Slashing Weapon Companion Sword Build | -11 -10 -9 -9 -9 -9 -6 -5 -5 -5 -5 -4 -4 -4 ------- Run | Yrd Mat Mat Sto Rec Scr Fac Fac Upp Upp Zhi Pro Fac Upp Slots Evolved 12 | . . 2 . . . 6 2 . . . . 2 . Power 1 | . . . . . . . . . . . . 1 . Propulsion 2 | . . . . . . 2 . . . . . . . Utility 9 | . . 2 . . . 4 2 . . . . 1 . Weapon . | . . . . . . . . . . . . . . Parts Attached 164 | 8 1 34 24 4 12 21 23 2 . 9 3 15 8 Power 21 | 1 . 4 2 . 1 2 4 . . 1 . 4 2 Engine 9 | 1 . 4 2 . 1 . . . . . . . 1 Core 6 | . . . . . . 2 3 . . . . 1 . Reactor 6 | . . . . . . . 1 . . 1 . 3 1 Propulsion 40 | 2 . 7 7 1 4 6 5 . . 4 . 1 3 Treads 18 | 2 . 7 7 1 1 . . . . . . . . Leg 8 | . . . . . . . . . . 4 . 1 3 Wheel 3 | . . . . . 3 . . . . . . . . Hover 9 | . . . . . . 4 5 . . . . . . Flight 2 | . . . . . . 2 . . . . . . . Utility 81 | 2 1 13 7 3 6 13 14 2 . 4 3 10 3 Device 35 | 1 . 7 2 1 3 6 6 1 . 1 2 5 . Storage 10 | 1 1 1 1 . 1 1 . . . 2 . 1 1 Processor 7 | . . . . . 1 1 2 1 . . . 1 1 Hackware 6 | . . . . . . 2 3 . . . . 1 . Protection 23 | . . 5 4 2 1 3 3 . . 1 1 2 1 Artifact . | . . . . . . . . . . . . . . Weapon 22 | 3 . 10 8 . 1 . . . . . . . . Energy Gun 5 | 1 . 3 1 . . . . . . . . . . Energy Cannon 1 | . . . 1 . . . . . . . . . . Ballistic Gun 13 | 2 . 7 4 . . . . . . . . . . Ballistic Cannon . | . . . . . . . . . . . . . . Launcher 1 | . . . 1 . . . . . . . . . . Special Weapon . | . . . . . . . . . . . . . . Impact Weapon 1 | . . . 1 . . . . . . . . . . Slashing Weapon 1 | . . . . . 1 . . . . . . . . Piercing Weapon . | . . . . . . . . . . . . . . Special Melee Weapon . | . . . . . . . . . . . . . . Unidentified Prototypes 19 | . . 1 4 . 1 2 5 . . 5 . 1 . Parts Lost 52 | . . 10 1 . . 3 11 1 1 . 2 8 15 Power 3 | . . . . . . . . . . . . 2 1 Propulsion 14 | . . 3 . . . . 3 1 . . . 1 6 Utility 35 | . . 7 1 . . 3 8 . 1 . 2 5 8 Weapon . | . . . . . . . . . . . . . . Highest Loss Streak 8 | . . 3 1 . . 1 5 1 1 . 2 3 8 To Critical Strikes . | . . . . . . . . . . . . . . Average Backups 16 | . 4 15 23 25 15 15 14 14 14 14 14 13 10 Power . | . . 1 1 1 . . . . . . 1 . . Propulsion 2 | . . 4 4 4 2 2 2 4 4 3 2 2 . Utility 6 | . 2 3 8 10 7 6 5 4 5 5 5 4 3 Weapon 5 | . 2 6 10 9 4 1 2 2 2 2 2 2 2 Tool/Special . | . . . . . . . . . . . . . . Unused Backups 48 | . . 12 3 2 11 6 3 . . . . 2 9 Power 5 | . . 2 2 . . . . . . . . . 1 Propulsion 11 | . . 6 . . 2 2 . . . . . 1 . Utility 15 | . . 2 . 2 4 4 1 . . . . . 2 Weapon 10 | . . 2 1 . 4 . . . . . . 1 2 Tool/Special 7 | . . . . . 1 . 2 . . . . . 4 Average Slot Usage (%) 86 | . 100 87 99 100 75 86 88 93 94 89 91 91 57 Engine 6 | . 14 11 11 11 8 1 . . . . . . . Treads 12 | . 28 21 22 22 15 . . . . . . . . Leg 2 | . . . . . . . . . . 13 23 20 12 Wheel 1 | . . . . . 1 12 . . . . . . . Hover 3 | . . . . . . 7 22 22 23 7 . . . Device 13 | . 14 15 10 11 11 18 17 17 17 10 15 15 1 Storage 8 | . 14 11 11 11 8 6 5 5 5 5 5 5 5 Processor 5 | . . . . . . 7 17 22 23 23 18 15 19 Hackware 2 | . . . . . . 5 7 11 11 11 11 12 5 Protection 11 | . . 5 22 22 13 11 3 . . 3 3 6 2 Ballistic Gun 10 | . 14 16 20 22 10 . . . . . . . . Slashing Weapon 2 | . . . . . 2 6 5 5 5 5 5 5 5 Peak Build Rating 110 | 7 7 18 20 19 27 65 84 83 82 95 97 110 82 Average Rating 35 | 5 7 14 18 18 16 49 75 82 82 86 93 103 60 On Entrance 47 | . 7 7 17 18 18 26 65 77 82 77 94 95 82 Avg Prop Armor Cover (%) 2 | . . . . . . 1 . . . . . 6 13 Naked Turns 195 | . . . . . 195 . . . . . . . . Heaviest Build 110 | 15 30 100 110 107 109 69 47 31 31 41 44 73 48 Greatest Support 113 | 40 40 52 40 40 43 48 49 40 48 113 113 113 73 Greatest Overweight (x) 14 | 2 . 2 2 2 14 2 1 . . 12 . . 7 Average Overweight (x) . | . . . 2 2 . . . . . . . . . Largest Inventory Capacity 25 | 8 15 25 25 25 25 20 15 15 15 15 15 15 15 Average Capacity 18 | 7 9 19 25 25 17 16 15 15 15 15 15 15 15 Most Carried 25 | 2 8 25 25 25 25 20 15 15 14 15 15 15 12 Average Carried 16 | . 4 15 23 24 15 15 14 14 14 14 14 13 10 Final Capacity 25 | 8 15 25 25 25 15 15 15 15 15 15 15 15 15 Final Carried 25 | 2 7 20 25 25 14 15 15 14 14 15 15 11 12 Class Distribution -------------------- 55% | Mutant 19% | Scavenger-Mutant 8% | Hacker-Mutant 4% | Assassin 3% | Infiltrator-Mutant Dominant Class ---------------- Mutant | -10/Materials Mutant | -9/Materials Mutant | -9/Storage Scavenger-Mutant | -9/Recycling Mutant | -9/Scraptown Mutant | -6/Factory Hacker-Mutant | -5/Factory Scout | -5/Upper Caves Scout | -5/Upper Caves Assassin | -5/Zhirov Assassin | -4/Proximity Caves Hacker-Mutant | -4/Factory Mutant | -4/Upper Caves Resources | -11 -10 -9 -9 -9 -9 -6 -5 -5 -5 -5 -4 -4 -4 ----------- Run | Yrd Mat Mat Sto Rec Scr Fac Fac Upp Upp Zhi Pro Fac Upp Matter Collected 4498 | 322 . 1295 1196 260 130 320 462 51 . . 182 200 80 Remotely . | . . . . . . . . . . . . . . Salvage Created 7424 | 126 . 1693 1269 318 . 978 1310 . . . 278 957 495 Parts 364 | 9 . 94 62 18 . 36 66 . . . 13 46 20 Haulers Intercepted 7 | . . 2 4 . . . 1 . . . . . . Recyclers Shooed 4 | . . 2 . . . . 1 . . . . 1 . Parts Field Recycled . | . . . . . . . . . . . . . . Retrieved Matter . | . . . . . . . . . . . . . . Parts Self-Destructed 32 | . . . . . . . . 4 . . 9 . 19 Prevented 1 | . . . . . . . . 1 . . . . . Parts Restored . | . . . . . . . . . . . . . . Kills | -11 -10 -9 -9 -9 -9 -6 -5 -5 -5 -5 -4 -4 -4 ------- Run | Yrd Mat Mat Sto Rec Scr Fac Fac Upp Upp Zhi Pro Fac Upp Combat Hostiles Destroyed 96 | . . 28 21 3 . 14 12 . . . 3 10 5 Melee 44 | . . . . . . 14 12 . . . 3 10 5 Guns 48 | . . 28 17 3 . . . . . . . . . AOE 4 | . . . 4 . . . . . . . . . . Classes Destroyed 18 | 2 . 6 4 . . 2 2 . . . 1 . 1 Worker 10 | . . . 1 . . 1 3 . . . . 5 . Builder 3 | . . . 1 . . . 2 . . . . . . Tunneler 3 | 2 . . . . . . 1 . . . . . . Hauler 7 | . . 2 4 . . . 1 . . . . . . Recycler 12 | 1 . 4 1 2 . 1 2 . . . . 1 . Minesweeper 1 | . . . . . . . . . . . . . 1 Mechanic 1 | . . . . . . . 1 . . . . . . Operator 3 | . . 1 1 . . . 1 . . . . . . Watcher 7 | . . 3 1 . . 1 2 . . . . . . Swarmer 3 | . . . . . . 3 . . . . . . . Grunt 49 | . . 18 10 . . 8 4 . . . . 5 4 Brawler 1 | . . . 1 . . . . . . . . . . Duelist 5 | . . 2 2 . . . . . . . . . 1 Protector 1 | . . . 1 . . . . . . . . . . Sentry 26 | . . 8 8 3 . 2 1 . . . 1 3 . Hunter 3 | . . . . . . . 1 . . . 2 . . Programmer 9 | . . . . . . 1 6 . . . . 2 . Packrat 1 | . . . . . . . . . . . . . 1 Samaritan 1 | . . . . . . . . . . . 1 . . Best Kill Streak 5 | 2 . 4 5 1 . 5 5 . . . 2 3 3 Combat Bots Only 5 | . . 4 5 1 . 5 3 . . . 2 3 3 Max Kills in Single Turn 2 | 1 . 1 2 1 . 1 1 . . . 1 1 1 Gunslinging . | . . . . . . . . . . . . . . Exploded 2 | . . . 2 . . . . . . . . . . Melee 1 | . . . . . . 1 1 . . . 1 1 1 Uniques/NPCs Destroyed . | . . . . . . . . . . . . . . Combat | -11 -10 -9 -9 -9 -9 -6 -5 -5 -5 -5 -4 -4 -4 -------- Run | Yrd Mat Mat Sto Rec Scr Fac Fac Upp Upp Zhi Pro Fac Upp Hostile Shots Fired 1067 | . . 194 81 18 . 198 129 5 18 . 52 196 176 Missed 370 | . . 50 22 4 . 60 43 2 11 . 18 102 58 Hits 697 | . . 144 59 14 . 138 86 3 7 . 34 94 118 Melee 24 | . . 6 2 . . 2 . . 1 . . . 13 Projectile 673 | . . 138 57 14 . 136 86 3 6 . 34 94 105 AOE 9 | . . . . . . 1 6 . . . . 2 . Critical Strikes 42 | . . 6 3 . . 3 5 . 1 . 3 9 12 Actively Blocked 1 | . . . . . . . . . . . 1 . . Damage Taken 11932 | . . 2049 863 207 . 1496 2059 24 131 . 524 1839 2740 Core 2173 | . . 273 67 . . 148 395 . 39 . 64 232 955 Absorbed by Shields 509 | . . . 25 . . 324 54 . . . . 106 . Redirected to Shielding 229 | . . . . . . 72 . . . . 157 . . Ignored by Resistances 65 | . . . . . . . . . . . . . 65 Regen/Repaired (Parts) 740 | . . 106 135 . 90 94 99 . . . . 216 . Core Remaining (%) 69 | 100 100 . . . 15 82 . . . . 50 . . Volleys Fired 258 | 14 4 146 69 25 . . . . . . . . . Largest 2 | 2 2 2 2 2 . . . . . . . . . Hottest 88 | 70 70 88 56 46 . . . . . . . . . Shots Fired 513 | 28 8 292 135 50 . . . . . . . . . Gun 510 | 28 8 292 132 50 . . . . . . . . . Cannon . | . . . . . . . . . . . . . . Launcher 3 | . . . 3 . . . . . . . . . . Special . | . . . . . . . . . . . . . . Kinetic 408 | 14 4 208 132 50 . . . . . . . . . Thermal 102 | 14 4 84 . . . . . . . . . . . Explosive 3 | . . . 3 . . . . . . . . . . Electromagnetic . | . . . . . . . . . . . . . . Robot Hit Streak 22 | 8 12 16 16 22 . . . . . . . . . Robot Miss Streak 5 | 3 2 5 2 1 . . . . . . . . . Penetration Max . | . . . . . . . . . . . . . . Secondary Targets 5 | . . 2 3 . . . . . . . . . . Max Gunslinging Chain 1 | . . 1 1 . . . . . . . . . . Shots Hit Robots 572 | 20 6 221 108 38 . 38 54 . . . 13 46 28 Core Hits 236 | 4 2 82 51 10 . 20 24 . . . 7 24 12 Critical Kills 2 | . . 1 1 . . . . . . . . . . Critical Parts Destroyed 1 | . . . 1 . . . . . . . . . . Critical Strikes 9 | . 1 6 2 . . . . . . . . . . Burn 6 | . 1 5 . . . . . . . . . . . Destroy 2 | . . 1 1 . . . . . . . . . . Smash 1 | . . . 1 . . . . . . . . . . Melee Attacks 325 | . . . 14 . . 80 104 . 2 . 18 73 34 Impact 14 | . . . 14 . . . . . . . . . . Slashing 311 | . . . . . . 80 104 . 2 . 18 73 34 Piercing . | . . . . . . . . . . . . . . Sneak Attacks 32 | . . . 3 . . 4 14 . . . 1 8 2 Combat Hostiles 1 | . . . . . . 1 . . . . . . . Follow-up Attacks 5 | . . . . . . . . . . . . . 5 Damage Inflicted 15157 | 252 75 3132 2407 576 . 1834 2993 . . . 591 2118 1179 Guns 5668 | 252 75 3132 1633 576 . . . . . . . . . Cannons . | . . . . . . . . . . . . . . Explosions 580 | . . . 580 . . . . . . . . . . Melee 8893 | . . . 194 . . 1818 2993 . . . 591 2118 1179 Ramming 16 | . . . . . . 16 . . . . . . . Kinetic 4573 | 113 37 2214 1633 576 . . . . . . . . . Thermal 1095 | 139 38 918 . . . . . . . . . . . Explosive 580 | . . . 580 . . . . . . . . . . Electromagnetic . | . . . . . . . . . . . . . . Impact 194 | . . . 194 . . . . . . . . . . Slashing 8699 | . . . . . . 1818 2993 . . . 591 2118 1179 Piercing . | . . . . . . . . . . . . . . Highest Corruption 5 | . . . . . . 1 5 5 5 5 5 3 3 Average Corruption 3 | . . . . . . 1 2 5 5 5 5 2 3 Corruption Purged . | . . . . . . . . . . . . . . Corruption Blocked . | . . . . . . . . . . . . . . Effects 58 | . . . . . . 7 13 6 4 4 8 8 8 Message Errors 8 | . . . . . . 2 2 1 . . . 2 1 Matter Fused 19 | . . . . . . . 4 3 3 2 4 2 1 Heat Flow Errors 10 | . . . . . . 3 2 . . 1 2 1 1 Energy Discharges 3 | . . . . . . 1 1 . . 1 . . . Parts Rejected 3 | . . . . . . . . . . . . 1 2 Parts Fused 1 | . . . . . . . 1 . . . . . . Data Loss (minor) 12 | . . . . . . . 3 2 1 . 2 2 2 Data Loss (major) 2 | . . . . . . 1 . . . . . . 1 Overload Shots . | . . . . . . . . . . . . . . Overflow Damage 852 | . . . 58 . . 233 349 . . . . 182 30 Projectiles . | . . . . . . . . . . . . . . Explosions . | . . . . . . . . . . . . . . Melee 852 | . . . 58 . . 233 349 . . . . 182 30 Knockbacks . | . . . . . . . . . . . . . . Impact . | . . . . . . . . . . . . . . Kinetic . | . . . . . . . . . . . . . . Secondary . | . . . . . . . . . . . . . . Self-Inflicted Damage 19 | . . . 11 . . 8 . . . . . . . Shots 1 | . . . 1 . . . . . . . . . . Rammed 1 | . . . . . . 1 . . . . . . . Targets Rammed 1 | . . . . . . 1 . . . . . . . Kicked . | . . . . . . . . . . . . . . Crushed . | . . . . . . . . . . . . . . Highest Temperature 254 | 72 27 25 34 5 . 248 215 . . 185 254 234 128 Average Temperature 45 | 27 12 7 10 3 . 104 97 . . 99 133 134 81 Received Heat Transfer 2763 | . . 813 336 63 . 359 153 9 27 . 54 303 646 Siege Activations . | . . . . . . . . . . . . . . Martial Activations . | . . . . . . . . . . . . . . Shielding Activations . | . . . . . . . . . . . . . . Robots Disrupted 1 | . . . . . . . . . . . . 1 . Combat Hostiles . | . . . . . . . . . . . . . . Robots Corrupted 1 | . . . 1 . . . . . . . . . . Combat Hostiles . | . . . . . . . . . . . . . . Parts Fried 2 | . . . . . . . 2 . . . . . . Impact Corruptions 2 | . . . 2 . . . . . . . . . . Robots Melted . | . . . . . . . . . . . . . . Combat Hostiles . | . . . . . . . . . . . . . . Parts Melted 10 | 1 . 6 . . . . 3 . . . . . . Heat Transferred 3176 | 407 185 2584 . . . . . . . . . . . Parts Sabotaged . | . . . . . . . . . . . . . . Parts Stolen . | . . . . . . . . . . . . . . Parts Stripped . | . . . . . . . . . . . . . . Power Chain Reactions . | . . . . . . . . . . . . . . Alert | -11 -10 -9 -9 -9 -9 -6 -5 -5 -5 -5 -4 -4 -4 ------- Run | Yrd Mat Mat Sto Rec Scr Fac Fac Upp Upp Zhi Pro Fac Upp Maximum Alert Level 2 | . . . 1 . . . 2 . . . . . . Low Security (%) 86 | 100 100 100 36 100 . 100 93 . . . . 100 . Level 1 13 | . . . 63 . . . 1 . . . . . . Level 2 . | . . . . . . . 5 . . . . . . Level 3 . | . . . . . . . . . . . . . . Level 4 . | . . . . . . . . . . . . . . Level 5 . | . . . . . . . . . . . . . . High Security . | . . . . . . . . . . . . . . Max Security . | . . . . . . . . . . . . . . Peak Influence 601 | 5 . 194 373 151 . 140 601 . . . . 80 . Initial 137 | . . . 79 137 . . 37 . . . . 7 . Average 92 | . . 56 249 47 . 62 71 . . . . 29 . Influence Increases 5192 | 15 . 865 1124 299 . 573 1465 15 105 . 70 526 135 Destroy 0b10 Robot/C 2460 | . . 560 580 60 . 280 620 . . . 60 200 100 Destroy 0b10 Robot/NC 255 | 15 . 50 65 10 . 15 65 . . . . 30 5 Destroy Leader 610 | . . 170 172 . . 62 146 . . . 10 50 . Allied During Kill 374 | . . . 111 . . . 263 . . . . . . Successful Hack 266 | . . 32 20 17 . 82 71 . . . . 44 . Select Force Hacks 270 | . . . 60 210 . . . . . . . . . Disable Machine 150 | . . 15 45 . . 15 60 . . . . 15 . Destroy Structure 207 | . . 8 26 2 . 29 120 . . . . 22 . Partial Spotted 45 | . . . 15 . . . 30 . . . . . . Lose Combat Pursuer 555 | . . 30 30 . . 90 90 15 105 . . 165 30 Influence Decreases 5182 | 15 . 675 961 652 . 495 946 372 136 209 58 476 187 Entered New Map 874 | . . . 111 216 . . 41 222 46 209 . 5 24 Time Decay 3128 | 15 . 560 620 436 . 431 443 100 80 . 38 332 73 Lost Part 429 | . . 90 10 . . 30 108 10 10 . 20 61 90 Lost Ally 464 | . . . 220 . . . 204 40 . . . . . Purge Threat 287 | . . 25 . . . 34 150 . . . . 78 . Squads Dispatched 34 | . . 3 5 . . 9 15 . . . . 2 . Investigation 14 | . . 1 2 . . 3 8 . . . . . . Extermination 9 | . . . . . . 3 4 . . . . 2 . Reinforcement 9 | . . 2 1 . . 3 3 . . . . . . Assault 2 | . . . 2 . . . . . . . . . . Garrison . | . . . . . . . . . . . . . . Intercept . | . . . . . . . . . . . . . . Searches Triggered . | . . . . . . . . . . . . . . Construction Impeded . | . . . . . . . . . . . . . . Haulers Reinforced 1 | . . . . . . . 1 . . . . . . Active Scanning Responses . | . . . . . . . . . . . . . . Cargo Convoy Interrupts . | . . . . . . . . . . . . . . Stealth | -11 -10 -9 -9 -9 -9 -6 -5 -5 -5 -5 -4 -4 -4 --------- Run | Yrd Mat Mat Sto Rec Scr Fac Fac Upp Upp Zhi Pro Fac Upp Distress Signals 9 | . . 3 3 . . . 2 . . . . 1 . Communications Jammed 8 | . . . . . . 1 7 . . . . . . Distress Signals 6 | . . . . . . 1 5 . . . . . . Times Spotted 216 | . 1 44 32 3 . 34 43 5 15 . 3 21 15 Peak Tracking Total 9 | . 1 5 5 1 . 5 5 6 9 . 2 5 8 Tactical Retreats 24 | . . 2 2 . . 2 6 1 4 . . 6 1 Traps | -11 -10 -9 -9 -9 -9 -6 -5 -5 -5 -5 -4 -4 -4 ------- Run | Yrd Mat Mat Sto Rec Scr Fac Fac Upp Upp Zhi Pro Fac Upp Traps Triggered 11 | . . 1 2 . . 3 4 . . . . 1 . Indirectly . | . . . . . . . . . . . . . . Trap Hack Attempts . | . . . . . . . . . . . . . . Triggered . | . . . . . . . . . . . . . . Disarmed . | . . . . . . . . . . . . . . Reprogrammed . | . . . . . . . . . . . . . . Reused . | . . . . . . . . . . . . . . Traps Extracted . | . . . . . . . . . . . . . . Installed . | . . . . . . . . . . . . . . Triggered . | . . . . . . . . . . . . . . Machines | -11 -10 -9 -9 -9 -9 -6 -5 -5 -5 -5 -4 -4 -4 ---------- Run | Yrd Mat Mat Sto Rec Scr Fac Fac Upp Upp Zhi Pro Fac Upp Machines Disabled 10 | . . 1 3 . . 1 4 . . . . 1 . Max in Single Turn 1 | . . 1 1 . . 1 1 . . . . 1 . Garrison Access 1 | . . . . . . 1 . . . . . . . Machines Repaired . | . . . . . . . . . . . . . . Machines Dismantled . | . . . . . . . . . . . . . . Machines Sabotaged . | . . . . . . . . . . . . . . Overloaded Fab Kills . | . . . . . . . . . . . . . . Hacking | -11 -10 -9 -9 -9 -9 -6 -5 -5 -5 -5 -4 -4 -4 --------- Run | Yrd Mat Mat Sto Rec Scr Fac Fac Upp Upp Zhi Pro Fac Upp Machines Accessed 80 | . 2 8 11 13 4 13 17 1 1 4 1 5 . Terminals 40 | . 2 5 8 6 . 7 7 . . . 1 4 . Fabricators 3 | . . . . . . 1 2 . . . . . . Repair Stations 7 | . . 1 1 . . 2 2 . . . . 1 . Recycling Units 13 | . . . 2 7 . 1 3 . . . . . . Scanalyzers 5 | . . 2 . . . 1 2 . . . . . . Garrison Access 2 | . . . . . . 1 1 . . . . . . Total Hacks 213 | . 6 26 26 21 29 33 36 1 1 17 1 16 . Successful 151 | . 4 20 11 14 29 19 20 1 1 17 1 14 . Failed 62 | . 2 6 15 7 . 14 16 . . . . 2 . Catastrophic 14 | . . 1 5 . . 3 5 . . . . . . Database Lockouts . | . . . . . . . . . . . . . . Manual 91 | . 4 8 18 22 . 19 17 . . . . 3 . Terminals 98 | . 6 16 19 12 . 21 13 . . . 1 10 . Fabricators 8 | . . . . . . 2 6 . . . . . . Repair Stations 23 | . . 2 5 . . 4 6 . . . . 6 . Recycling Units 15 | . . . 2 9 . 1 3 . . . . . . Scanalyzers 15 | . . 8 . . . 3 4 . . . . . . Garrison Access 6 | . . . . . . 2 4 . . . . . . Terminal Hacks 66 | . 1 3 2 . 29 2 3 1 1 17 1 6 . Record 34 | . . . . . 28 . . . . 5 1 . . Part Schematic 5 | . . . . . . . 1 . . 4 . . . Robot Analysis 4 | . . . . . . . . . . 4 . . . Prototype ID Bank 5 | . . 1 . . . . . . . 4 . . . Open Door 5 | . . . 2 . 1 . . 1 1 . . . . Branch Access Points 1 | . . . . . . . 1 . . . . . . Terminal Index 1 | . . . . . . . . . . . . 1 . Unreport Threat 6 | . . 2 . . . 1 1 . . . . 2 . Locate Traps 2 | . 1 . . . . 1 . . . . . . . Hauler Manifests 1 | . . . . . . . . . . . . 1 . Registered Components 1 | . . . . . . . . . . . . 1 . Registered Prototypes 1 | . . . . . . . . . . . . 1 . Fabricator Hacks 4 | . . . . . . 1 3 . . . . . . Network Status 1 | . . . . . . . 1 . . . . . . Load Schematic 3 | . . . . . . 1 2 . . . . . . Repair Station Hacks 19 | . . 2 4 . . 3 4 . . . . 6 . Scan Component 10 | . . 1 2 . . 2 2 . . . . 3 . Repair 9 | . . 1 2 . . 1 2 . . . . 3 . Recycling Unit Hacks . | . . . . . . . . . . . . . . Scanalyzer 14 | . . 8 . . . 3 3 . . . . . . Insert Component 4 | . . 2 . . . 1 1 . . . . . . Analyze 5 | . . 1 . . . 2 2 . . . . . . Retrieve Study 5 | . . 5 . . . . . . . . . . . Garrison Access Hacks 1 | . . . . . . 1 . . . . . . . Seal Access 1 | . . . . . . 1 . . . . . . . Unauthorized Hacks 47 | . 3 7 5 14 . 9 7 . . . . 2 . Terminals 31 | . 3 7 3 7 . 7 2 . . . . 2 . Botnet 11 | . 1 2 . 2 . 2 2 . . . . 2 . Skim 20 | . 2 5 3 5 . 5 . . . . . . . Fabricators 3 | . . . . . . 1 2 . . . . . . Recompile 3 | . . . . . . 1 2 . . . . . . Repair Stations . | . . . . . . . . . . . . . . Recycling Units 13 | . . . 2 7 . 1 3 . . . . . . Tunnel 9 | . . . 2 7 . . . . . . . . . Fedlink 1 | . . . . . . 1 . . . . . . . Scrapoids 3 | . . . . . . . 3 . . . . . . Scanalyzers . | . . . . . . . . . . . . . . Garrison Access . | . . . . . . . . . . . . . . Data Cores Recovered 1 | . . 1 . . . . . . . . . . . Used 1 | . . 1 . . . . . . . . . . . Hacking Detections 47 | . 1 6 6 6 . 11 13 . . . . 4 . Full Trace Events 4 | . . . . . . 1 3 . . . . . . Feedback Events . | . . . . . . . . . . . . . . Feedback Blocked . | . . . . . . . . . . . . . . Robot Schematics Acquired . | . . . . . . . . . . . . . . Robots Built . | . . . . . . . . . . . . . . Authchips . | . . . . . . . . . . . . . . Time . | . . . . . . . . . . . . . . Total Robot Build Rating . | . . . . . . . . . . . . . . Part Schematics Acquired 7 | . . 1 . . . 1 1 . . 4 . . . Parts Built . | . . . . . . . . . . . . . . Authchips . | . . . . . . . . . . . . . . Time . | . . . . . . . . . . . . . . Total Part Build Rating . | . . . . . . . . . . . . . . Part Studies Acquired 5 | . . 5 . . . . . . . . . . . Parts Repaired 8 | . . 1 2 . . 1 2 . . . . 2 . Time 319 | . . 13 64 . . 16 58 . . . . 168 . Parts Recycled . | . . . . . . . . . . . . . . Recycled Matter . | . . . . . . . . . . . . . . Retrieved Matter . | . . . . . . . . . . . . . . Retrieved Components . | . . . . . . . . . . . . . . Parts Scanalyzed 3 | . . 1 . . . 1 1 . . . . . . Part Schematics Acquired 2 | . . 1 . . . 1 . . . . . . . Parts Damaged . | . . . . . . . . . . . . . . Bothacking | -11 -10 -9 -9 -9 -9 -6 -5 -5 -5 -5 -4 -4 -4 ------------ Run | Yrd Mat Mat Sto Rec Scr Fac Fac Upp Upp Zhi Pro Fac Upp Used RIF Installer . | . . . . . . . . . . . . . . Robots Hacked . | . . . . . . . . . . . . . . Non-combat . | . . . . . . . . . . . . . . Combat . | . . . . . . . . . . . . . . Robot Hacks Applied . | . . . . . . . . . . . . . . Relay Couplers Released . | . . . . . . . . . . . . . . Fabnet Peak Effective % . | . . . . . . . . . . . . . . Robots Rewired . | . . . . . . . . . . . . . . Allies Hacked . | . . . . . . . . . . . . . . Hacks Repelled . | . . . . . . . . . . . . . . Allies | -11 -10 -9 -9 -9 -9 -6 -5 -5 -5 -5 -4 -4 -4 -------- Run | Yrd Mat Mat Sto Rec Scr Fac Fac Upp Upp Zhi Pro Fac Upp Total Allies 27 | . . . 12 . . . 15 . . . . . . Largest Group 10 | . . . 10 . . . 10 2 . . . . . Highest-Rated Group 470 | . . . 88 . . . 470 94 . . . . . Highest-Rated Ally 50 | . . . 31 . . . 50 47 . . . . . Total Orders 5 | . . . . . 1 . 4 . . . . . . STAY 3 | . . . . . . . 3 . . . . . . FOLLOW 1 | . . . . . . . 1 . . . . . . RETURN 1 | . . . . . 1 . . . . . . . . Ally Attacks 257 | . . . 134 . . . 113 10 . . . . . Total Damage 4139 | . . . 1292 . . . 2636 211 . . . . . Kills 31 | . . . 12 . . . 19 . . . . . . Allies Corrupted 2 | . . . . . . . 2 . . . . . . Allies Melted . | . . . . . . . . . . . . . . Intel | -11 -10 -9 -9 -9 -9 -6 -5 -5 -5 -5 -4 -4 -4 ------- Run | Yrd Mat Mat Sto Rec Scr Fac Fac Upp Upp Zhi Pro Fac Upp Active Infowar (turns) 5684 | 30 283 57 . . . 1410 1533 219 167 176 492 908 409 Optics 3362 | . . . . . . 392 1533 219 167 176 492 383 . Sensors 1682 | . . . . . . . 1280 219 167 . . 16 . Terrain 1957 | . . . . . . . . 214 167 176 492 908 . Structural 1227 | . . . . . . 820 407 . . . . . . Seismic 1824 | 30 283 57 . . . 1409 45 . . . . . . Decoding 409 | . . . . . . . . . . . . . 409 Jamming 2169 | . . . . . . 686 553 . . . 412 518 . Robot Analysis Total 4 | . . . . . . . . . . 4 . . . Derelict Logs Recovered 6 | . . . . . . . . 2 1 . 2 . 1 Drone Launches 3 | . . . . . 3 . . . . . . . . Drone Recoveries 3 | . . . . . 3 . . . . . . . . Exploration | -11 -10 -9 -9 -9 -9 -6 -5 -5 -5 -5 -4 -4 -4 ------------- Run | Yrd Mat Mat Sto Rec Scr Fac Fac Upp Upp Zhi Pro Fac Upp Turns Passed 17325 | 173 283 2194 2092 1649 5363 1446 1533 219 167 176 492 1000 538 Spaces Moved 10981 | 80 165 790 683 599 3188 1309 2001 411 286 180 351 574 364 Core 924 | 17 . . . . 905 . . . . 1 . . 1 Treads 4148 | 63 165 790 683 599 1848 . . . . . . . . Legs 1363 | . . . . . . . . . . 75 351 574 363 Wheels 1176 | . . . . . 435 741 . . . . . . . Hover 3370 | . . . . . . 568 2001 411 286 104 . . . Flight . | . . . . . . . . . . . . . . Fastest Speed 38 | 50 160 160 240 240 50 41 38 50 38 50 120 120 120 Average Speed 128 | 147 160 197 240 240 150 84 55 50 48 82 120 120 122 Slowest Speed 750 | 160 160 320 240 240 750 195 121 58 50 650 120 120 400 Overloaded Moves 84 | . . . . . . 26 18 . 40 . . . . Propulsion Burnouts . | . . . . . . . . . . . . . . Robots Hopped . | . . . . . . . . . . . . . . Potential Cave-ins . | . . . . . . . . . . . . . . Cave-ins Triggered . | . . . . . . . . . . . . . . Exploration Rate (%) 54 | 6 26 74 81 99 89 35 47 68 47 63 61 14 53 Regions Visited 13 Branch Regions 8 Pre-discovered Areas 18 | . . . 2 7 4 . . 1 1 3 . . . Known Exits Taken 9 | . . 1 . 1 . 1 1 1 1 1 1 1 . Unknown Exits Taken 4 | 1 1 . 1 . 1 . . . . . . . . Scrap Searched 14 | . . . . . 8 . . 2 . . 2 . 2 Spaces Dug 90 | . . . 12 . . 29 35 . 2 . 1 11 . Terrain Destroyed 106 | . . . 28 . . 29 35 . 2 . 1 11 . Melee 82 | . . . 4 . . 29 35 . 2 . 1 11 . Projectile . | . . . . . . . . . . . . . . AOE 24 | . . . 24 . . . . . . . . . . Terrain Rammed . | . . . . . . . . . . . . . . Walls Destroyed . | . . . . . . . . . . . . . . Machines Disabled . | . . . . . . . . . . . . . . Actions | -11 -10 -9 -9 -9 -9 -6 -5 -5 -5 -5 -4 -4 -4 --------- Run | Yrd Mat Mat Sto Rec Scr Fac Fac Upp Upp Zhi Pro Fac Upp Total 13305 | 103 177 1146 996 774 3766 1531 2278 423 311 207 396 785 412 Wait 1242 | . . 112 160 141 518 51 97 9 24 5 19 101 5 Move 10969 | 79 164 789 682 598 3187 1309 2000 410 285 179 350 573 364 Hop . | . . . . . . . . . . . . . . Pick Up 131 | 2 6 31 9 1 19 25 21 1 . 4 3 7 2 Fast Attach 78 | 7 . 15 4 . 11 10 7 . . 7 2 6 9 Attach 47 | . . 5 . . 1 12 16 2 . 1 1 7 2 Detach 19 | . . 3 . . 2 5 4 . . . 1 3 1 Swap 102 | 1 1 17 36 4 4 11 19 1 . 2 . 6 . Drop 129 | . 2 28 19 5 24 21 10 . . 9 2 9 . Fire 258 | 14 4 146 69 25 . . . . . . . . . Melee 320 | . . . 14 . . 80 104 . 2 . 18 73 29 Ram . | . . . . . . . . . . . . . . Kick . | . . . . . . . . . . . . . . Crush . | . . . . . . . . . . . . . . Escape Stasis 10 | . . . 3 . . 7 . . . . . . . Rewire . | . . . . . . . . . . . . . . Trap . | . . . . . . . . . . . . . . Miscellaneous . | . . . . . . . . . . . . . . Route ------- -11/Scrapyard -10/Materials -9/Materials (discovered 6 exits: *Mat x3 / [*Min] / *Sto x2) -9/Storage (discovered 2 exits: *Mat / *Rec) -9/Recycling (discovered 2 exits: [*Fac] / *Scr) -9/Scraptown (discovered 2 exits: *Fac x2) -6/Factory (discovered 6 exits: *Fac x4 / *Low / Ext) -5/Factory (discovered 2 exits: *Upp x2) -5/Upper Caves -5/Upper Caves -5/Zhirov -4/Proximity Caves -4/Factory (discovered 4 exits: Res x2 / *Upp / [Arm]) -4/Upper Caves History --------- Turn | Location | Event 7 | -11/Scrapyard | Discovered new exit (range 15) 174 | -11/Scrapyard | Entered Materials 300 | -10/Materials | Build established: Mutant 345 | -10/Materials | Discovered new exit (range 16) 457 | -10/Materials | Entered another Materials area 457 | -9/Materials | Evolved 2 slots: Utility x2 854 | -9/Materials | Lost 3 parts (1n2u) 881 | -9/Materials | Repaired Lgt. Treads 1041 | -9/Materials | Discovered new exit (range 4) 1379 | -9/Materials | Discovered new exit (range 6) 1584 | -9/Materials | Discovered new exit (range 12) 1809 | -9/Materials | Core integrity fell below 50% 2002 | -9/Materials | Discovered new exit (range 16) 2087 | -9/Materials | Lost 3 parts (2n1u) 2283 | -9/Materials | Identified exit to Storage 2348 | -9/Materials | Identified exit to Materials 2348 | -9/Materials | Learned location of 1 exit from Materials 2402 | -9/Materials | Learned 2 Storage zone layouts 2444 | -9/Materials | Learned 2 Storage zone layouts 2556 | -9/Materials | Learned Materials stockpile data 2651 | -9/Materials | Entered Storage 2748 | -9/Storage | Assisted by bots powering up and referring to "LRC-V3" 3047 | -9/Storage | Lost 7 allies 3430 | -9/Storage | Met a pair of Derelict thieves 3745 | -9/Storage | Discovered exit to Materials (range 7) 3884 | -9/Storage | Core integrity fell below 20% 4658 | -9/Storage | Repaired Med. Armor Plating 4692 | -9/Storage | Repaired Med. Armor Plating 4734 | -9/Storage | Used back door to open Recycling access 4734 | -9/Storage | Discovered new exit (range 5) 4743 | -9/Storage | Entered Recycling 5225 | -9/Recycling | Discovered new exit (range 5) 5758 | -9/Recycling | Build established: Scavenger-Mutant 5969 | -9/Recycling | Learned 2 Materials zone layouts 6042 | -9/Recycling | Learned location of 3 exits from Materials 6103 | -9/Recycling | Learned Materials security intel 6156 | -9/Recycling | Identified exit to Scraptown 6197 | -9/Recycling | Learned Storage stockpile data 6229 | -9/Recycling | Learned 2 Storage zone layouts 6245 | -9/Recycling | Scanned before Scraplab entrance 6271 | -9/Recycling | Learned Materials emergency access door positions 6323 | -9/Recycling | Learned 4 Materials zone layouts 6366 | -9/Recycling | Entered Scraplab 6392 | -9/Recycling | Entered Scraptown 6920 | -9/Scraptown | Discovered new exit (range 5) 7139 | -9/Scraptown | Visited Cyclists 7206 | -9/Scraptown | Visited Cave Peace 7252 | -9/Scraptown | Visited CR-KLE's Repair Center 7744 | -9/Scraptown | Visited The Evicted 7761 | -9/Scraptown | Visited Fellowship of the Rings 7799 | -9/Scraptown | Build established: Mutant 7828 | -9/Scraptown | Visited UFD Registry 7833 | -9/Scraptown | Registered with UFD as "Shortbucket" 7855 | -9/Scraptown | Visited Comm Corps 8035 | -9/Scraptown | Visited Scrap Suit Storage 8078 | -9/Scraptown | Visited Sword Containment 8121 | -9/Scraptown | Visited Abandonware Association 8152 | -9/Scraptown | Learned abandonware demo "REBOOT5.EXE" 8327 | -9/Scraptown | Visited Cartography Club 8392 | -9/Scraptown | Visited DA-N13 Charitable Foundation 8719 | -9/Scraptown | Visited Chapter 10 8771 | -9/Scraptown | Visited Research Penetration Think Tank 9058 | -9/Scraptown | Found Surveybot 17 Chip 9087 | -9/Scraptown | Learned location of Proximity Caves (-3) 9087 | -9/Scraptown | Learned location of Warlord (-4) 9087 | -9/Scraptown | Learned 12 Factory zone layouts 9087 | -9/Scraptown | Learned 8 Research zone layouts 9087 | -9/Scraptown | Learned 12 Research zone layouts 9087 | -9/Scraptown | Learned 4 Access zone layouts 9087 | -9/Scraptown | Learned 16 Upper Caves zone layouts 9087 | -9/Scraptown | Learned 4 Recycling zone layouts 9087 | -9/Scraptown | Learned 8 Proximity Caves zone layouts 9087 | -9/Scraptown | Learned 4 Hub_04(d) zone layouts 9087 | -9/Scraptown | Learned Storage emergency access door positions 9087 | -9/Scraptown | Learned location of 3 exits from Factory 9087 | -9/Scraptown | Learned location of 1 exit from Upper Caves 9087 | -9/Scraptown | Learned location of 3 exits from Proximity Caves 9154 | -9/Scraptown | Found Deep Structural Scanner 9665 | -9/Scraptown | Visited LU-1G1's Boring Crew 9767 | -9/Scraptown | Visited Awakened 10310 | -9/Scraptown | Found Prototype Slashing Weapon 10310 | -9/Scraptown | Identified Companion Sword 10495 | -9/Scraptown | Found DCF Scrap (29 items) 11577 | -9/Scraptown | CR-KLE repaired 4 parts 11692 | -9/Scraptown | Met Optimus 11692 | -9/Scraptown | Accepted into 0bPrime 11751 | -9/Scraptown | Discovered new exit (range 5) 11755 | -9/Scraptown | Entered Factory 11755 | -6/Factory | Evolved 6 slots: Propulsion x2, Utility x4 11756 | -6/Factory | Identified exit to Extension 11756 | -6/Factory | Identified exit to Factory 11756 | -6/Factory | Identified exit to Lower Caves 12376 | -6/Factory | Loaded intel: 8 recycling unit locations 12413 | -6/Factory | Repaired Arm. Wheel? 12417 | -6/Factory | Build established: Infiltrator-Mutant 12891 | -6/Factory | Discovered exit to Factory (range 9) 13070 | -6/Factory | Spotted B-75 Beast 13087 | -6/Factory | Build established: Hacker-Mutant 13193 | -6/Factory | Discovered exit to Factory (range 6) 13201 | -6/Factory | Entered another Factory area 13201 | -5/Factory | Evolved 2 slots: Utility x2 13453 | -5/Factory | Repaired Cld. Airjet 13506 | -5/Factory | Repaired Cld. Airjet 14116 | -5/Factory | Spotted B-75 Beast 14153 | -5/Factory | Scrapoid reinforcements arrived 14217 | -5/Factory | Lost 4 allies 14308 | -5/Factory | Identified exit to Upper Caves 14360 | -5/Factory | Lost 5 parts (1n4u) 14618 | -5/Factory | Scrapoids reinforcements arrived? 14642 | -5/Factory | Scrapoids reinforcements arrived? 14694 | -5/Factory | Lost 5 allies 14734 | -5/Factory | Entered Upper Caves 14734 | -5/Upper Caves | Accompanied by 2 allies 14735 | -5/Upper Caves | Identified exit to Upper Caves 14747 | -5/Upper Caves | Learned Factory emergency access door positions 14788 | -5/Upper Caves | Spotted B-75 Beast 14813 | -5/Upper Caves | Ambushed by wild Derelicts 14840 | -5/Upper Caves | Attracted the attention of an 0b10 checkpoint 14953 | -5/Upper Caves | Entered another Upper Caves area 15034 | -5/Upper Caves | Build established: Scout 15081 | -5/Upper Caves | Encountered a Warlord checkpoint 15095 | -5/Upper Caves | Attracted the attention of an 0b10 checkpoint 15113 | -5/Upper Caves | Discovered new exit (range 16) 15120 | -5/Upper Caves | Identified exit to Zhirov 15120 | -5/Upper Caves | Entered Zhirov 15120 | -5/Zhirov | Discovered new exit (range 3) 15130 | -5/Zhirov | Met Zhirov 15141 | -5/Zhirov | Learned location of Testing (-2) 15141 | -5/Zhirov | Learned location of Command (-1) 15148 | -5/Zhirov | Zhirov requested help retrieving the SGEMP Prototype 15156 | -5/Zhirov | Found Alien Artifact 15156 | -5/Zhirov | Identified Integrated Dissipator 15156 | -5/Zhirov | Installed Integrated Dissipator, increased core heat dissipation (+20) 15163 | -5/Zhirov | Found Alien Artifact 15294 | -5/Zhirov | Identified exit to Proximity Caves 15296 | -5/Zhirov | Entered Proximity Caves 15297 | -4/Proximity Caves | Identified exit to Factory 15454 | -4/Proximity Caves | Build established: Assassin 15735 | -4/Proximity Caves | Attracted the attention of an 0b10 checkpoint 15788 | -4/Proximity Caves | Entered Factory 15788 | -4/Factory | Evolved 2 slots: Power x1, Utility x1 15789 | -4/Factory | Identified exit to Research 16027 | -4/Factory | Discovered new exit (range 16) 16092 | -4/Factory | Spotted B-86 Titan 16169 | -4/Factory | Build established: Hacker-Assassin 16219 | -4/Factory | Discovered new exit (range 16) 16242 | -4/Factory | Identified exit to Upper Caves 16337 | -4/Factory | Lost 3 parts (1p2u) 16464 | -4/Factory | Repaired Imp. Medium Armor Plating 16659 | -4/Factory | Repaired Adv. Reaction Control System 16788 | -4/Factory | Entered Upper Caves 16881 | -4/Upper Caves | Lost 8 parts (4n4u) 17128 | -4/Upper Caves | Build established: Mutant 17179 | -4/Upper Caves | Attracted the attention of an 0b10 checkpoint 17263 | -4/Upper Caves | Lost 4 parts (1p2n1u) 17289 | -4/Upper Caves | Attracted the attention of an 0b10 outpost 17291 | -4/Upper Caves | Core integrity fell below 50% 17321 | -4/Upper Caves | Core integrity fell below 20% 17326 | -4/Upper Caves | Destroyed by L-61 Swordsman with Power Sword Last Messages --------------- 17317_ Companion Sword surprise attacks L-61 Swordsman. 17318_ Surveybot 17 Chip severed. 17319_ Penetrated by Slug. 17320_ Flexi-carbon Leg fries itself beyond repair. 17320_ Adv. Signal Interpreter severed. 17320_ Penetrated by Slug. 17321_ Lgt. Antimatter Reactor fries itself beyond repair. 17321_ Hacking Suite destroyed. 17322_ Companion Sword surprise attacks L-61 Swordsman. 17322_ Destroyed Adv. Melee Analysis Suite. 17323_ Penetrated by Slug. 17324_ Adv. Melee Analysis Suite fries itself beyond repair. 17324_ Companion Sword surprise attacks L-61 Swordsman. 17325_ Slug penetrates Wall. Map ----- +----------------------------------------------------+ | ??????###?## ?????????????????????????????????? | | ??????# ## ?????????????????????????????????? | | ?????## #??????????????????#??????????????? | | ?????# #???????????????? #????????? ## | | ?????# ####????????????? #??????## | | ?????# ##??????????? #????## | | ???????? #?????????? #????# | | ??????????# #?????????? #?##?? | | ??????????# #???????????? ## ##? | | ??????????# #????????????? #?# | | ??????????## # #?????????????? ### | | ???????????## # #???????#####??? ## | | ????????????# # ######### ##??# #?# | | ????????????# # ##?# #?## | | ????????????# # #?# #??# | | ????????????#%=### ######### ### ##?#! | | ????????????# #?# #???###### ###% | | ????????????# ### ##### ### ## = | | ???????????## ## ## %* | | ??????????## ## * #;# ! | | ?????????## ### #####%* #### ## ## | | ?????????# ### #???##YY ##### ### ### | | ?????????# ### #????#! ##?# #?# #### | | ?????????## ## ##???##% ### #?# ##?# | | ??????????# #????#%l! ###??## | | ??????????#### ## #????#@######## ### #?????#" | | ?????????????#######??? lg#??????# ### #??##### | | ????????????????????? g/#??????# ??####?## | | ????????????????????# ### #???# #####" %= | | ??????????????????? ???# #??? $ | | ??????????????????##????# #??????# | | ????????????????????????# #??????# #####"#### | | ????????????????????????# #??????? #????#????# | | ????????????????????????# ??????????????????# | | ?????????????????????????##??????????????????## # | | ??????????????????????????????????????????????#### | | ?????????????????????????????????????????????????? | | ?????????????????????????????????????????????????? | | ?????????????????????????????????????????????????? | | ?????????????????????????????????????????????????? | | ?????????????????????????????????????????????????? | | ?????????????????????????????????????????????????? | | ?????????????????????????????????????????????????? | | ?????????????????????????????????????????????????? | | ?????????????????????????????????????????????????? | | ?????????????????????????????????????????????????? | | ?????????????????????????????????????????????????? | | ?????????????????????????????????????????????????? | | ?????????????????????????????????????????????????? | | ?????????????????????????????????????????????????? | +----------------------------------------------------+ Best States ------------- Heat Dissipation 86 Energy Generation 39 Energy Capacity 795 Matter Stores 300 Matter Capacity 300 Sight Range 22 Robot Scan Range 16 Terrain Scan Range 16 Terrain Scan Density 1210 Jamming Range 14 Additional Mass Support 6 Armor Coverage 675 Resistance: TH 15 Resistance: EM 15 Propulsion Shielding 90 Utility Shielding 66 Phase Shifting 10 Evasion (%) 92 Melee Accuracy 8 Core Analysis 6 Recoil Reduction 2 Offensive Hacking 24 Authchip Count 3 Item Schematics ----------------- Autogun | -9/Materials | Scanalyzed Cld. Cesium-ion Thruster | -6/Factory | Scanalyzed Adv. Melee Analysis Suite | -5/Factory | Hacked Assault Drone Bay | -5/Zhirov | Free Exp. Heat Sink | -5/Zhirov | Free Exp. Optical Array | -5/Zhirov | Free Imp. Arc Thrower | -5/Zhirov | Free Robot Schematics ------------------ None Fabricated ------------ Nothing Repaired ---------- Lgt. Treads | 24% | -9/Materials Med. Armor Plating | 35% | -9/Storage Med. Armor Plating | 51% | -9/Storage Arm. Wheel | 6% | -6/Factory Cld. Airjet | 22% | -5/Factory Cld. Airjet | 67% | -5/Factory Imp. Medium Armor Plating | 26% | -4/Factory Adv. Reaction Control System | 20% | -4/Factory Studied --------- Imp. Treads | -9/Materials | Hacked Hvy. Assault Rifle | -9/Materials | Hacked Lgt. Treads | -9/Materials | Hacked Autogun | -9/Materials | Hacked Rocket Launcher | -9/Materials | Hacked Alien Tech Used ----------------- Integrated Dissipator Achievements -------------- None Challenges ------------ None Game ------ Seed StorageMicrowarpExpander Manual? 0 Play Time 02:22:12 Cumulative 246.6 hours Start 2025.11.21 @ 00:30:24 End 2025.11.21 @ 14:24:17 Sessions 2 Manual Loads 0 Difficulty Rogue Special Mode None Game No. 181 Rogue 181 Adventurer 0 Explorer 0 Win Type - Total 11 Types 6/0/2/1/0/0/0/1/0/1 Lore% 66 Gallery% 74 Achievement% 66 Wizard Run 0 Options --------- Layout 2 ASCII 0 Keyboard 1 Movement Arrows Keybinds 0 Fullscreen 1 Font 32/Tamsyn Map View 50x44 Zoom Use 0% Tactical HUD 1 Map Filters NONE Filters NONE Steam 1 RUN: ee91864e-531e-4d04-a8d6-157d53a16c0e